[Event "36th European Club Cup 2021"]
[Site "Struga"]
[Date "2021.09.24"]
[Round "7.50"]
[White "Roeder, Matthias"]
[Black "Ahlander, Bjorn"]
[Result "1/2-1/2"]
[ECO "D34"]
[WhiteElo "2372"]
[BlackElo "2383"]
[Annotator "NA"]
[PlyCount "51"]
[EventDate "2021.09.18"]
[EventType "team-tourn"]
[EventCountry "MKD"]
[SourceTitle "playchess.com"]
[Source "ChessBase"]
[SourceQuality "1"]
[TimeControl "40/5400+30:1800+30"]

1. Nf3 {[%emt 0:00:04]} Nf6 {[%emt 0:00:03]} 2. g3 {[%emt 0:00:25]} d5 {
[%emt 0:00:31]} 3. Bg2 {[%emt 0:00:12]} e6 {[%emt 0:00:17]} 4. O-O {[%emt 0:00:
21]} Be7 {[%emt 0:00:25]} 5. c4 {[%emt 0:00:11]} O-O {[%emt 0:00:07]} 6. b3 {
[%emt 0:03:07]} c5 {[%emt 0:00:09]} 7. cxd5 {[%emt 0:00:30]} exd5 {[%emt 0:02:
23]} 8. d4 {[%emt 0:00:07]} Nc6 {[%emt 0:00:14]} 9. Bb2 {[%emt 0:03:28]} Ne4 {
[%emt 0:06:48]} 10. Nc3 {[%emt 0:08:07]} Bf6 {[%emt 0:00:36]} 11. Na4 {[%emt 0:
00:32]} cxd4 {[%emt 0:11:05]} 12. Nxd4 {[%emt 0:02:10]} Re8 {[%emt 0:05:09]}
13. Rc1 {[%emt 0:04:43]} Bxd4 {[%emt 0:11:29]} 14. Bxd4 {[%emt 0:00:09]} Bf5 {
[%emt 0:00:42]} 15. e3 {[%emt 0:13:33]} Qe7 {[%emt 0:06:51]} 16. h4 {[%emt 0:
14:39]} Rad8 {[%emt 0:02:33]} 17. Re1 {[%emt 0:04:47]} h6 {[%emt 0:05:01]} 18.
Ba1 {[%emt 0:02:30]} Qe6 {[%emt 0:06:33]} 19. Qe2 {[%emt 0:06:16]} Bh3 {
[%emt 0:03:20]} 20. Red1 {[%emt 0:12:06]} f6 {[%emt 0:08:56]} 21. Kh2 {[%emt 0:
03:17]} Bxg2 {[%emt 0:08:55]} 22. Kxg2 {[%emt 0:00:06]} Re7 {[%emt 0:01:29]}
23. Qh5 {[%emt 0:05:06]} Nb4 {[%emt 0:04:44]} 24. Qe2 {[%emt 0:01:35]} Nc6 {
[%emt 0:00:39]} 25. Qh5 {[%emt 0:00:44]} Nb4 {[%emt 0:00:43]} 26. Qe2 {[%emt 0:
01:36]} 1/2-1/2

[Event "36th European Club Cup 2021"]
[Site "Struga"]
[Date "2021.09.24"]
[Round "7.51"]
[White "Dragicevic, Drazen"]
[Black "Boidman, Yuri"]
[Result "1-0"]
[ECO "A55"]
[WhiteElo "2344"]
[BlackElo "2318"]
[Annotator "NA"]
[PlyCount "103"]
[EventDate "2021.09.18"]
[EventType "team-tourn"]
[EventCountry "MKD"]
[SourceTitle "playchess.com"]
[Source "ChessBase"]
[SourceQuality "1"]
[TimeControl "40/5400+30:1800+30"]

1. c4 {[%emt 0:00:14]} c6 {[%emt 0:00:22]} 2. e4 {[%emt 0:00:27]} e5 {[%emt 0:
01:02]} 3. Nf3 {[%emt 0:01:44]} d6 {[%emt 0:00:15]} 4. d4 {[%emt 0:01:40]} Nd7
{[%emt 0:00:37]} 5. Nc3 {[%emt 0:03:34]} Ngf6 {[%emt 0:00:34]} 6. Be2 {[%emt 0:
01:59]} Be7 {[%emt 0:00:13]} 7. h3 {[%emt 0:00:46]} O-O {[%emt 0:00:48]} 8. Be3
{[%emt 0:01:18]} a6 {[%emt 0:01:41]} 9. d5 {[%emt 0:09:41]} c5 {[%emt 0:07:19]}
10. Qc2 {[%emt 0:04:17]} g6 {[%emt 0:02:41]} 11. g4 {[%emt 1:10:20]} Ne8 {
[%emt 0:02:54]} 12. O-O-O {[%emt 0:00:00]} b5 {[%emt 0:03:54]} 13. Rdg1 {
[%emt 0:00:00]} Qa5 {[%emt 0:03:32]} 14. cxb5 {[%emt 0:00:00]} axb5 {[%emt 0:
04:01]} 15. Bxb5 {[%emt 0:00:00]} Rb8 {[%emt 0:01:18]} 16. Be2 {[%emt 0:00:00]}
Ba6 {[%emt 0:01:26]} 17. h4 {[%emt 0:00:00]} Nb6 {[%emt 0:02:57]} 18. Bxa6 {
[%emt 0:00:00]} Qxa6 {[%emt 0:00:11]} 19. Nd2 {[%emt 0:00:00]} Nc7 {[%emt 0:02:
05]} 20. Bg5 {[%emt 0:00:00]} f6 {[%emt 0:05:10]} 21. Bh6 {[%emt 0:00:00]} Rf7
{[%emt 0:00:29]} 22. f4 {[%emt 0:00:00]} exf4 {[%emt 0:04:28]} 23. Bxf4 {
[%emt 0:00:00]} Nb5 {[%emt 0:03:13]} 24. Nxb5 {[%emt 0:00:00]} Qxb5 {[%emt 0:
00:06]} 25. Rh3 {[%emt 0:00:00]} c4 {[%emt 0:02:09]} 26. Ra3 {[%emt 0:00:00]}
Bf8 {[%emt 0:01:44]} 27. Nf3 {[%emt 0:00:00]} f5 {[%emt 0:14:34]} 28. Nd4 {
[%emt 0:03:00]} Qc5 {[%emt 0:00:21]} 29. Be3 {[%emt 0:00:11]} f4 {[%emt 0:02:
50]} 30. Bf2 {[%emt 0:00:10]} Qc8 {[%emt 0:05:28]} 31. Nc6 {[%emt 0:00:54]}
Rbb7 {[%emt 0:01:35]} 32. Ra6 {[%emt 0:01:41]} Nd7 {[%emt 0:01:22]} 33. Qxc4 {
[%emt 0:00:09]} Qe8 {[%emt 0:00:50]} 34. Qa4 {[%emt 0:01:40]} Ne5 {[%emt 0:03:
59]} 35. Ra8 {[%emt 0:00:31]} Nd3+ {[%emt 0:01:12]} 36. Kd2 {[%emt 0:01:09]}
Nxb2 {[%emt 0:01:51]} 37. Rxe8 {[%emt 0:00:16]} Nxa4 {[%emt 0:00:01]} 38. Bd4 {
[%emt 0:00:25]} h6 {[%emt 0:03:29]} 39. g5 {[%emt 0:00:53]} h5 {[%emt 0:02:21]}
40. Re6 {[%emt 0:00:00]} Kh7 {[%emt 0:00:00]} 41. Nd8 {[%emt 0:03:41]} Rb4 {
[%emt 0:08:51]} 42. Bc3 {[%emt 0:03:38]} Nxc3 {[%emt 0:05:42]} 43. Kxc3 {
[%emt 0:01:48]} Rfb7 {[%emt 0:00:21]} 44. Nxb7 {[%emt 0:00:09]} Rxb7 {[%emt 0:
00:07]} 45. Kd3 {[%emt 0:00:08]} Bg7 {[%emt 0:03:11]} 46. Rxd6 {[%emt 0:01:27]}
Ra7 {[%emt 0:00:28]} 47. Rf1 {[%emt 0:00:55]} Ra3+ {[%emt 0:00:56]} 48. Kc2 {
[%emt 0:01:16]} f3 {[%emt 0:00:36]} 49. Rd7 {[%emt 0:00:25]} Kg8 {[%emt 0:01:
20]} 50. Kd2 {[%emt 0:04:55]} Rxa2+ {[%emt 0:00:58]} 51. Ke3 {[%emt 0:00:15]}
Ra3+ {[%emt 0:00:13]} 52. Kf4 {[%emt 0:00:25]} 1-0

[Event "36th European Club Cup 2021"]
[Site "Struga"]
[Date "2021.09.24"]
[Round "7.52"]
[White "Hautot, Stephane"]
[Black "Jogstad, Martin"]
[Result "0-1"]
[ECO "A05"]
[WhiteElo "2329"]
[BlackElo "2341"]
[Annotator "NA"]
[PlyCount "90"]
[EventDate "2021.09.18"]
[EventType "team-tourn"]
[EventCountry "MKD"]
[SourceTitle "playchess.com"]
[Source "ChessBase"]
[SourceQuality "1"]
[TimeControl "40/5400+30:1800+30"]

1. Nf3 {[%emt 0:03:09]} Nf6 {[%emt 0:01:01]} 2. g3 {[%emt 0:00:22]} b5 {
[%emt 0:00:08]} 3. Bg2 {[%emt 0:00:58]} Bb7 {[%emt 0:00:07]} 4. O-O {[%emt 0:
00:08]} e6 {[%emt 0:00:23]} 5. b3 {[%emt 0:01:06]} c5 {[%emt 0:02:28]} 6. Bb2 {
[%emt 0:00:15]} Be7 {[%emt 0:00:38]} 7. d3 {[%emt 0:00:23]} O-O {[%emt 0:01:39]
} 8. c4 {[%emt 0:01:05]} a6 {[%emt 0:01:32]} 9. e3 {[%emt 0:01:55]} Nc6 {
[%emt 0:02:19]} 10. Qe2 {[%emt 0:01:14]} d5 {[%emt 0:00:46]} 11. Rd1 {[%emt 0:
02:32]} Qb6 {[%emt 0:13:55]} 12. Nc3 {[%emt 0:03:55]} Rfd8 {[%emt 0:02:07]} 13.
cxd5 {[%emt 0:26:39]} Nxd5 {[%emt 0:06:23]} 14. Nxd5 {[%emt 0:04:41]} Rxd5 {
[%emt 0:04:27]} 15. d4 {[%emt 0:03:17]} Rdd8 {[%emt 0:05:51]} 16. dxc5 {
[%emt 0:14:11]} Qxc5 {[%emt 0:14:33]} 17. Nd4 {[%emt 0:13:11]} Qb6 {[%emt 0:06:
35]} 18. Nxc6 {[%emt 0:11:04]} Bxc6 {[%emt 0:00:40]} 19. Qg4 {[%emt 0:00:15]}
Bf8 {[%emt 0:01:19]} 20. Bd4 {[%emt 0:01:59]} Qb7 {[%emt 0:00:45]} 21. Bxc6 {
[%emt 0:00:04]} Qxc6 {[%emt 0:00:02]} 22. Rac1 {[%emt 0:00:23]} Qb7 {[%emt 0:
01:39]} 23. Be5 {[%emt 0:02:18]} Rac8 {[%emt 0:01:11]} 24. Qe2 {[%emt 0:01:09]}
Qe4 {[%emt 0:02:06]} 25. Bb2 {[%emt 0:01:12]} Rxd1+ {[%emt 0:09:22]} 26. Qxd1 {
[%emt 0:00:02]} Rxc1 {[%emt 0:00:51]} 27. Bxc1 {[%emt 0:01:52]} Qb1 {[%emt 0:
01:30]} 28. Qd2 {[%emt 0:00:06]} h5 {[%emt 0:00:31]} 29. Kg2 {[%emt 0:00:14]}
h4 {[%emt 0:01:37]} 30. f3 {[%emt 0:00:51]} a5 {[%emt 0:09:07]} 31. e4 {
[%emt 0:00:47]} Be7 {[%emt 0:01:18]} 32. gxh4 {[%emt 0:01:44]} Bb4 {[%emt 0:01:
02]} 33. Qb2 {[%emt 0:00:31]} Qd3 {[%emt 0:00:11]} 34. Bf4 {[%emt 0:00:52]} Bc3
{[%emt 0:01:06]} 35. Qf2 {[%emt 0:00:02]} e5 {[%emt 0:00:26]} 36. Be3 {[%emt 0:
01:58]} Bd4 {[%emt 0:00:41]} 37. Bxd4 {[%emt 0:00:04]} exd4 {[%emt 0:00:02]}
38. Qg3 {[%emt 0:00:34]} Qc2+ {[%emt 0:01:00]} 39. Kh3 {[%emt 0:00:55]} Qc8+ {
[%emt 0:02:13]} 40. Kg2 {[%emt 0:00:00]} d3 {[%emt 0:00:00]} 41. h5 {[%emt 0:
06:46]} Qc2+ {[%emt 0:09:16]} 42. Kh3 {[%emt 0:00:13]} d2 {[%emt 0:01:12]} 43.
h6 {[%emt 0:27:04]} Qc8+ {[%emt 0:01:04]} 44. Kg2 {[%emt 0:00:00]} Qf8 {
[%emt 0:00:28]} 45. h7+ {[%emt 0:00:00]} Kh8 {[%emt 0:00:19]} 0-1

[Event "36th European Club Cup 2021"]
[Site "Struga"]
[Date "2021.09.24"]
[Round "7.53"]
[White "Storme, Isak"]
[Black "Dardha, Arben"]
[Result "1-0"]
[ECO "D35"]
[WhiteElo "2304"]
[BlackElo "2253"]
[Annotator "NA"]
[PlyCount "101"]
[EventDate "2021.09.18"]
[EventType "team-tourn"]
[EventCountry "MKD"]
[SourceTitle "playchess.com"]
[Source "ChessBase"]
[SourceQuality "1"]
[TimeControl "40/5400+30:1800+30"]

1. d4 {[%emt 0:00:09]} Nf6 {[%emt 0:00:53]} 2. c4 {[%emt 0:00:09]} e6 {[%emt 0:
00:15]} 3. Nc3 {[%emt 0:00:07]} d5 {[%emt 0:00:06]} 4. cxd5 {[%emt 0:00:05]}
Nxd5 {[%emt 0:00:07]} 5. e4 {[%emt 0:00:07]} Nxc3 {[%emt 0:00:10]} 6. bxc3 {
[%emt 0:00:06]} c5 {[%emt 0:00:32]} 7. Rb1 {[%emt 0:00:09]} cxd4 {[%emt 0:06:
58]} 8. cxd4 {[%emt 0:00:23]} Be7 {[%emt 0:00:12]} 9. Bc4 {[%emt 0:01:18]} O-O
{[%emt 0:00:21]} 10. Ne2 {[%emt 0:00:17]} Nd7 {[%emt 0:03:43]} 11. O-O {
[%emt 0:01:38]} b6 {[%emt 0:01:41]} 12. Bb2 {[%emt 0:00:28]} Bb7 {[%emt 0:01:
04]} 13. Ng3 {[%emt 0:01:33]} Nf6 {[%emt 0:04:25]} 14. Qe2 {[%emt 0:02:19]} Rc8
{[%emt 0:02:12]} 15. Rbc1 {[%emt 0:09:52]} Qd7 {[%emt 0:16:36]} 16. f4 {
[%emt 0:12:00]} g6 {[%emt 0:17:10]} 17. Kh1 {[%emt 0:13:50]} Ne8 {[%emt 0:14:
52]} 18. f5 {[%emt 0:17:43]} exf5 {[%emt 0:03:45]} 19. exf5 {[%emt 0:05:32]}
Bg5 {[%emt 0:07:20]} 20. Bb5 {[%emt 0:03:35]} Qd8 {[%emt 0:03:40]} 21. Rxc8 {
[%emt 0:00:11]} Bxc8 {[%emt 0:09:53]} 22. fxg6 {[%emt 0:06:18]} hxg6 {[%emt 0:
00:42]} 23. d5 {[%emt 0:01:50]} Nd6 {[%emt 0:01:30]} 24. Bc6 {[%emt 0:00:21]}
Qe7 {[%emt 0:01:00]} 25. Qxe7 {[%emt 0:00:17]} Bxe7 {[%emt 0:00:02]} 26. Re1 {
[%emt 0:00:24]} Bh4 {[%emt 0:00:17]} 27. Ba3 {[%emt 0:00:26]} Rd8 {[%emt 0:04:
02]} 28. Bxd6 {[%emt 0:00:13]} Rxd6 {[%emt 0:00:12]} 29. Re8+ {[%emt 0:00:08]}
Kg7 {[%emt 0:00:14]} 30. Rxc8 {[%emt 0:00:14]} Rf6 {[%emt 0:00:31]} 31. Re8 {
[%emt 0:00:28]} Rf2 {[%emt 0:00:11]} 32. a4 {[%emt 0:00:43]} f5 {[%emt 0:00:05]
} 33. Re2 {[%emt 0:01:04]} Rf4 {[%emt 0:01:48]} 34. Kg1 {[%emt 0:00:58]} Rd4 {
[%emt 0:00:06]} 35. Nf1 {[%emt 0:00:16]} Bg5 {[%emt 0:00:26]} 36. g3 {[%emt 0:
00:15]} a6 {[%emt 0:00:15]} 37. Kg2 {[%emt 0:00:25]} b5 {[%emt 0:00:07]} 38.
axb5 {[%emt 0:00:28]} axb5 {[%emt 0:00:03]} 39. h4 {[%emt 0:00:27]} Bh6 {
[%emt 0:00:42]} 40. Nh2 {[%emt 0:00:00]} b4 {[%emt 0:00:00]} 41. Nf3 {[%emt 0:
01:36]} Rd3 {[%emt 0:03:38]} 42. Re7+ {[%emt 0:02:30]} Kf8 {[%emt 0:00:20]} 43.
Rb7 {[%emt 0:00:41]} b3 {[%emt 0:00:20]} 44. Ne5 {[%emt 0:03:30]} Rd2+ {
[%emt 0:01:54]} 45. Kh3 {[%emt 0:00:08]} b2 {[%emt 0:02:37]} 46. Nc4 {[%emt 0:
00:55]} Rc2 {[%emt 0:01:24]} 47. Nxb2 {[%emt 0:01:33]} Bg7 {[%emt 0:00:20]} 48.
Nd3 {[%emt 0:00:31]} Bd4 {[%emt 0:00:41]} 49. Nf4 {[%emt 0:01:19]} Bg1 {
[%emt 0:01:42]} 50. Nxg6+ {[%emt 0:00:18]} Kg8 {[%emt 0:00:10]} 51. Ne7+ {
[%emt 0:00:07]} 1-0

[Event "36th European Club Cup 2021"]
[Site "Struga"]
[Date "2021.09.24"]
[Round "7.54"]
[White "Jeitz, Christian"]
[Black "Nord, Alexander"]
[Result "0-1"]
[ECO "B51"]
[WhiteElo "2231"]
[BlackElo "2144"]
[Annotator "ChessBase"]
[PlyCount "148"]
[EventDate "2021.09.18"]
[EventType "team-tourn"]
[EventCountry "MKD"]
[SourceTitle "playchess.com"]
[Source "ChessBase"]
[SourceQuality "1"]
[TimeControl "40/5400+30:1800+30"]

1. e4 {[%emt 0:00:03]} c5 {[%emt 0:00:08]} 2. Nf3 {[%emt 0:00:06]} d6 {[%emt 0:
00:07]} 3. Bb5+ {[%emt 0:00:07]} Nd7 {[%emt 0:00:17]} 4. d4 {[%emt 0:00:15]}
cxd4 {[%emt 0:00:21]} 5. Qxd4 {[%emt 0:00:09]} a6 {[%emt 0:00:07]} 6. Bxd7+ {
[%emt 0:00:41]} Bxd7 {[%emt 0:00:06]} 7. Nc3 {[%emt 0:00:40]} e5 {[%emt 0:00:
31]} 8. Qd3 {[%emt 0:00:20]} Rc8 {[%emt 0:00:19]} 9. O-O {[%emt 0:06:23]} h6 {
[%emt 0:00:25]} 10. a4 {[%emt 0:01:38]} Nf6 {[%emt 0:01:15]} 11. Be3 {[%emt 0:
01:27]} Be6 {[%emt 0:16:15]} 12. Rfe1 {[%emt 0:07:20]} Be7 {[%emt 0:03:38]} 13.
a5 {[%emt 0:03:23]} Qc7 {[%emt 0:03:48]} 14. Nd2 {[%emt 0:13:41]} O-O {[%emt 0:
01:41]} 15. f3 {[%emt 0:03:17]} Qc6 {[%emt 0:05:23]} 16. Nf1 {[%emt 0:09:58]}
d5 {[%emt 0:05:45]} 17. exd5 {[%emt 0:02:03]} Nxd5 {[%emt 0:00:12]} 18. Nxd5 {
[%emt 0:00:16]} Bxd5 {[%emt 0:05:21]} 19. c3 {[%emt 0:01:41]} e4 {[%emt 0:08:
07]} 20. fxe4 {[%emt 0:01:18]} Bxe4 {[%emt 0:00:08]} 21. Qe2 {[%emt 0:00:31]}
Rfe8 {[%emt 0:02:23]} 22. Ng3 {[%emt 0:07:51]} Bg6 {[%emt 0:00:50]} 23. Qf2 {
[%emt 0:01:52]} Bf6 {[%emt 0:10:04]} 24. Bb6 {[%emt 0:05:24]} Rxe1+ {[%emt 0:
03:30]} 25. Rxe1 {[%emt 0:00:24]} Qd5 {[%emt 0:00:34]} 26. Nf1 {[%emt 0:12:44]}
Bg5 {[%emt 0:07:27]} 27. Qg3 {[%emt 0:05:36]} Qb5 {[%emt 0:04:12]} 28. Qg4 {
[%emt 0:02:34]} Re8 {[%emt 0:01:28]} 29. Rxe8+ {[%emt 0:01:44]} Qxe8 {[%emt 0:
00:03]} 30. Qf3 {[%emt 0:00:35]} Be4 {[%emt 0:01:00]} 31. Qe2 {[%emt 0:00:48]}
Bc6 {[%emt 0:00:21]} 32. Qxe8+ {[%emt 0:02:13]} Bxe8 {[%emt 0:00:02]} 33. Bd4 {
[%emt 0:01:39]} g6 {[%emt 0:01:12]} 34. Kf2 {[%emt 0:00:22]} Bc6 {[%emt 0:00:
44]} 35. g3 {[%emt 0:00:39]} Bd8 {[%emt 0:03:37]} 36. b4 {[%emt 0:00:06]} f5 {
[%emt 0:00:41]} 37. Ne3 {[%emt 0:00:27]} Kf7 {[%emt 0:00:58]} 38. Nc4 {[%emt 0:
01:01]} Ke6 {[%emt 0:01:20]} 39. Nb6 {[%emt 0:05:56]} g5 {[%emt 0:02:45]} 40.
Ke3 {[%emt 0:00:00]} Bc7 {[%emt 0:00:00]} 41. Nc4 {[%emt 0:07:33]} f4+ {
[%emt 0:03:34]} 42. Kf2 {[%emt 0:00:22]} Kf5 {[%emt 0:03:15]} 43. Nd2 {[%emt 0:
02:59]} Kg4 {[%emt 0:05:54]} 44. Nf1 {[%emt 0:02:55]} Bb5 {[%emt 0:01:33]} 45.
gxf4 {[%emt 0:00:52]} Bxf4 {[%emt 0:01:58]} 46. Ng3 {[%emt 0:01:21]} Kh3 {
[%emt 0:02:20]} 47. Bg7 {[%emt 0:00:51]} Kxh2 {[%emt 0:28:21]} 48. Nh5 {
[%emt 0:01:12]} Bb8 {[%emt 0:00:00]} 49. Bxh6 {[%emt 0:03:42]} g4 {[%emt 0:00:
00]} 50. Bf4+ {[%emt 0:01:54]} Bxf4 {[%emt 0:00:00]} 51. Nxf4 {[%emt 0:00:03]}
Bc4 {[%emt 0:00:00]} 52. Nh5 {[%emt 0:02:58]} Kh3 {[%emt 0:00:00]} 53. Nf4+ {
[%emt 0:00:53]} Kh4 {[%emt 0:00:00]} 54. Ng2+ {[%emt 0:00:18]} Kg5 {[%emt 0:00:
00]} 55. Ke3 {[%emt 0:00:43]} Kf5 {[%emt 0:00:00]} 56. Kd4 {[%emt 0:00:40]} Be2
{[%emt 0:00:00]} 57. c4 {[%emt 0:05:40]} g3 {[%emt 0:00:00]} 58. Ne3+ {[%emt 0:
02:35]} Kf4 {[%emt 0:00:00]} 59. Ng2+ {[%emt 0:01:04]} Kf3 {[%emt 0:00:00]} 60.
Nh4+ {[%emt 0:01:35]} Kg4 {[%emt 0:00:00]} 61. Ng2 {[%emt 0:00:03]} Bf1 {
[%emt 0:00:00]} 62. Ne3+ {[%emt 0:02:19]} Kf4 {[%emt 0:00:00]} 63. b5 {[%emt 0:
00:50]} axb5 {[%emt 0:03:53]} 64. c5 {[%emt 0:00:57]} b4 {[%emt 0:01:47]} 65.
Nd5+ {[%emt 0:00:48]} Kf3 {[%emt 0:00:06]} 66. Ne3 {[%emt 0:00:14]} Ba6 {
[%emt 0:01:12]} 67. Nf5 {[%emt 0:00:47]} g2 {[%emt 0:00:26]} 68. Nh4+ {[%emt 0:
00:03]} Kg3 {[%emt 0:00:05]} 69. Nxg2 {[%emt 0:00:03]} Kxg2 {[%emt 0:00:04]}
70. Ke3 {[%emt 0:00:06]} Kg3 {[%emt 0:00:56]} 71. Kd2 {[%emt 0:00:04]} Kf4 {
[%emt 0:00:12]} 72. Kc2 {[%emt 0:00:04]} Ke5 {[%emt 0:00:04]} 73. Kb3 {[%emt 0:
00:04]} Kd5 {[%emt 0:00:12]} 74. Kxb4 {[%emt 0:00:03]} Kd4 {[%emt 0:00:05]} 0-1

[Event "36th European Club Cup 2021"]
[Site "Struga"]
[Date "2021.09.24"]
[Round "7.55"]
[White "Markoja, Boris"]
[Black "Kjartansson, Gudmundur"]
[Result "1/2-1/2"]
[ECO "E08"]
[WhiteElo "2453"]
[BlackElo "2447"]
[Annotator "ChessBase"]
[PlyCount "70"]
[EventDate "2021.09.18"]
[EventType "team-tourn"]
[EventCountry "MKD"]
[SourceTitle "playchess.com"]
[Source "ChessBase"]
[SourceQuality "1"]
[TimeControl "40/5400+30:1800+30"]

1. d4 {[%emt 0:00:03]} Nf6 {[%emt 0:00:08]} 2. c4 {[%emt 0:00:06]} e6 {[%emt 0:
00:32]} 3. g3 {[%emt 0:00:06]} d5 {[%emt 0:00:04]} 4. Bg2 {[%emt 0:00:19]} Be7
{[%emt 0:00:12]} 5. Nf3 {[%emt 0:00:12]} Nbd7 {[%emt 0:00:51]} 6. Qc2 {[%emt 0:
04:16]} O-O {[%emt 0:00:22]} 7. O-O {[%emt 0:00:16]} c6 {[%emt 0:00:28]} 8. Rd1
{[%emt 0:00:45]} b6 {[%emt 0:00:14]} 9. b3 {[%emt 0:00:51]} Bb7 {[%emt 0:00:38]
} 10. Nc3 {[%emt 0:01:16]} c5 {[%emt 0:13:13]} 11. cxd5 {[%emt 0:01:56]} Nxd5 {
[%emt 0:01:26]} 12. Nxd5 {[%emt 0:02:06]} Bxd5 {[%emt 0:01:07]} 13. e4 {
[%emt 0:00:24]} Bb7 {[%emt 0:00:52]} 14. d5 {[%emt 0:00:05]} exd5 {[%emt 0:03:
25]} 15. exd5 {[%emt 0:00:16]} Bf6 {[%emt 0:01:22]} 16. Bb2 {[%emt 0:02:53]}
Bxb2 {[%emt 0:00:52]} 17. Qxb2 {[%emt 0:00:06]} Qf6 {[%emt 0:00:13]} 18. Qxf6 {
[%emt 0:01:43]} Nxf6 {[%emt 0:00:15]} 19. Ne5 {[%emt 0:00:10]} Rfd8 {[%emt 0:
01:09]} 20. Rd3 {[%emt 0:20:53]} Ne8 {[%emt 0:04:42]} 21. d6 {[%emt 0:15:31]}
Bxg2 {[%emt 0:02:20]} 22. Kxg2 {[%emt 0:00:50]} Rxd6 {[%emt 0:04:14]} 23. Rxd6
{[%emt 0:00:25]} Nxd6 {[%emt 0:00:05]} 24. Rd1 {[%emt 0:00:03]} f6 {[%emt 0:16:
56]} 25. Nc6 {[%emt 0:05:04]} Nb5 {[%emt 0:04:51]} 26. Rd7 {[%emt 0:01:45]} Kf8
{[%emt 0:02:55]} 27. Kf3 {[%emt 0:09:52]} Rc8 {[%emt 0:00:41]} 28. Nxa7 {
[%emt 0:01:07]} Nxa7 {[%emt 0:00:04]} 29. Rxa7 {[%emt 0:00:05]} c4 {[%emt 0:00:
16]} 30. bxc4 {[%emt 0:00:56]} Rxc4 {[%emt 0:00:02]} 31. a4 {[%emt 0:01:33]}
Rb4 {[%emt 0:00:22]} 32. a5 {[%emt 0:01:16]} bxa5 {[%emt 0:00:03]} 33. Rxa5 {
[%emt 0:00:03]} Rb3+ {[%emt 0:00:03]} 34. Kg2 {[%emt 0:00:05]} Rb4 {[%emt 0:00:
02]} 35. Kf3 {[%emt 0:00:05]} Rb3+ {[%emt 0:00:02]} 1/2-1/2

[Event "36th European Club Cup 2021"]
[Site "Struga"]
[Date "2021.09.24"]
[Round "7.56"]
[White "Sulypa, Oleksandr"]
[Black "Subelj, Jan"]
[Result "1/2-1/2"]
[ECO "D36"]
[WhiteElo "2455"]
[BlackElo "2415"]
[Annotator "ChessBase"]
[PlyCount "124"]
[EventDate "2021.09.18"]
[EventType "team-tourn"]
[EventCountry "MKD"]
[SourceTitle "playchess.com"]
[Source "ChessBase"]
[SourceQuality "1"]
[TimeControl "40/5400+30:1800+30"]

1. d4 {[%emt 0:00:03]} d5 {[%emt 0:00:24]} 2. c4 {[%emt 0:00:04]} e6 {[%emt 0:
00:20]} 3. Nc3 {[%emt 0:00:05]} Nf6 {[%emt 0:01:00]} 4. cxd5 {[%emt 0:00:40]}
exd5 {[%emt 0:01:57]} 5. Bg5 {[%emt 0:00:06]} c6 {[%emt 0:01:09]} 6. e3 {
[%emt 0:00:52]} Be7 {[%emt 0:00:31]} 7. Qc2 {[%emt 0:00:49]} Nbd7 {[%emt 0:00:
13]} 8. Bd3 {[%emt 0:00:07]} Nh5 {[%emt 0:01:39]} 9. Bxe7 {[%emt 0:01:13]} Qxe7
{[%emt 0:00:15]} 10. O-O-O {[%emt 0:01:03]} Nb6 {[%emt 0:03:16]} 11. Kb1 {
[%emt 0:01:22]} Be6 {[%emt 0:01:19]} 12. Rc1 {[%emt 0:03:10]} g6 {[%emt 0:07:
10]} 13. Nge2 {[%emt 0:12:59]} Ng7 {[%emt 0:07:13]} 14. Ng3 {[%emt 0:18:51]} h5
{[%emt 0:04:57]} 15. h4 {[%emt 0:10:28]} O-O-O {[%emt 0:01:53]} 16. Na4 {
[%emt 0:02:07]} Nxa4 {[%emt 0:02:36]} 17. Qxa4 {[%emt 0:00:15]} Kb8 {[%emt 0:
00:11]} 18. Rc3 {[%emt 0:00:37]} Bc8 {[%emt 0:01:12]} 19. Rhc1 {[%emt 0:10:27]}
Ne8 {[%emt 0:10:15]} 20. Ra3 {[%emt 0:06:25]} a6 {[%emt 0:02:30]} 21. Nf1 {
[%emt 0:05:04]} Nd6 {[%emt 0:03:09]} 22. Rb3 {[%emt 0:06:10]} b5 {[%emt 0:07:
33]} 23. Qb4 {[%emt 0:06:21]} Bb7 {[%emt 0:01:04]} 24. g3 {[%emt 0:00:07]} Rhe8
{[%emt 0:02:45]} 25. Qc5 {[%emt 0:07:06]} Nc4 {[%emt 0:06:43]} 26. Qxe7 {
[%emt 0:01:28]} Rxe7 {[%emt 0:00:02]} 27. Rbc3 {[%emt 0:00:42]} Rd6 {[%emt 0:
00:47]} 28. Ka1 {[%emt 0:02:40]} Rf6 {[%emt 0:00:45]} 29. R3c2 {[%emt 0:00:34]}
Ka7 {[%emt 0:02:42]} 30. b3 {[%emt 0:00:30]} Na3 {[%emt 0:01:18]} 31. Re2 {
[%emt 0:00:43]} Bc8 {[%emt 0:03:02]} 32. Kb2 {[%emt 0:02:21]} b4 {[%emt 0:00:
11]} 33. Rce1 {[%emt 0:00:19]} Bg4 {[%emt 0:01:17]} 34. Rd2 {[%emt 0:00:02]}
Bf5 {[%emt 0:05:31]} 35. Bxf5 {[%emt 0:00:02]} Rxf5 {[%emt 0:00:43]} 36. Nh2 {
[%emt 0:00:12]} Nb5 {[%emt 0:01:26]} 37. f3 {[%emt 0:01:27]} Rf6 {[%emt 0:01:
27]} 38. Kc2 {[%emt 0:00:26]} Rc7 {[%emt 0:02:31]} 39. Kd3 {[%emt 0:00:01]} c5
{[%emt 0:00:18]} 40. Rc1 {[%emt 0:00:00]} Rfc6 {[%emt 0:00:00]} 41. Rxc5 {
[%emt 0:13:06]} Rxc5 {[%emt 0:04:27]} 42. dxc5 {[%emt 0:00:10]} Rxc5 {[%emt 0:
00:30]} 43. Rc2 {[%emt 0:01:20]} Nc3 {[%emt 0:06:21]} 44. g4 {[%emt 0:04:13]}
Kb6 {[%emt 0:04:16]} 45. gxh5 {[%emt 0:05:03]} gxh5 {[%emt 0:00:09]} 46. Nf1 {
[%emt 0:00:01]} Rc6 {[%emt 0:02:44]} 47. Rg2 {[%emt 0:00:27]} a5 {[%emt 0:01:
42]} 48. Kd4 {[%emt 0:01:07]} a4 {[%emt 0:00:29]} 49. bxa4 {[%emt 0:04:25]} Ka5
{[%emt 0:12:32]} 50. Rg8 {[%emt 0:01:55]} Ra6 {[%emt 0:00:08]} 51. Nd2 {
[%emt 0:04:07]} Kxa4 {[%emt 0:00:11]} 52. Rh8 {[%emt 0:00:54]} Ka3 {[%emt 0:02:
30]} 53. Rxh5 {[%emt 0:00:07]} Kxa2 {[%emt 0:00:33]} 54. Rh8 {[%emt 0:01:16]}
Kb2 {[%emt 0:00:35]} 55. Rb8 {[%emt 0:00:50]} Kc2 {[%emt 0:01:29]} 56. Rxb4 {
[%emt 0:00:06]} Kxd2 {[%emt 0:00:11]} 57. Rb2+ {[%emt 0:00:19]} Kc1 {[%emt 0:
00:06]} 58. Rh2 {[%emt 0:00:35]} Nd1 {[%emt 0:00:52]} 59. h5 {[%emt 0:00:07]}
Rh6 {[%emt 0:00:07]} 60. f4 {[%emt 0:01:04]} f5 {[%emt 0:01:57]} 61. Kd3 {
[%emt 0:01:04]} Nb2+ {[%emt 0:00:42]} 62. Kc3 {[%emt 0:00:11]} Nd1+ {[%emt 0:
04:48]} 1/2-1/2

[Event "36th European Club Cup 2021"]
[Site "Struga"]
[Date "2021.09.24"]
[Round "7.57"]
[White "Mikhalchishin, Adrian"]
[Black "Petursson, Margeir"]
[Result "1/2-1/2"]
[ECO "B06"]
[WhiteElo "2455"]
[BlackElo "2442"]
[Annotator "ChessBase"]
[PlyCount "25"]
[EventDate "2021.09.18"]
[EventType "team-tourn"]
[EventCountry "MKD"]
[SourceTitle "playchess.com"]
[Source "ChessBase"]
[SourceQuality "1"]
[TimeControl "40/5400+30:1800+30"]

1. e4 {[%emt 0:00:30]} c5 {[%emt 0:00:30]} 2. Nf3 {[%emt 0:00:08]} g6 {[%emt 0:
00:11]} 3. c3 {[%emt 0:00:07]} d5 {[%emt 0:00:14]} 4. exd5 {[%emt 0:00:09]}
Qxd5 {[%emt 0:00:09]} 5. d4 {[%emt 0:00:09]} Bg7 {[%emt 0:00:14]} 6. Na3 {
[%emt 0:00:10]} cxd4 {[%emt 0:00:11]} 7. Bc4 {[%emt 0:00:21]} Qe4+ {[%emt 0:00:
16]} 8. Be3 {[%emt 0:00:11]} Nh6 {[%emt 0:00:17]} 9. Bd3 {[%emt 0:00:13]} Qd5 {
[%emt 0:00:34]} 10. Bc4 {[%emt 0:00:10]} Qe4 {[%emt 0:00:25]} 11. Bd3 {[%emt 0:
00:12]} Qd5 {[%emt 0:00:47]} 12. Bc4 {[%emt 0:00:31]} Qe4 {[%emt 0:00:23]} 13.
Bd3 {[%emt 0:00:12]} 1/2-1/2